fUST/lending_fUST_20250622
["ID","MTS","AMOUNT","RATE_DAILY","PERIOD"]
[366936159,1750590649063,-460.0,0.00021917,3]
[366936160,1750590649074,-460.0,0.00021917,3]
[366936161,1750590649084,-460.0,0.00021917,3]
[366936162,1750590649093,-460.0,0.00021917,3]
[366936163,1750590649103,-460.0,0.00021917,3]
[366936164,1750590649112,-460.0,0.00021917,3]
[366936165,1750590649122,-460.0,0.00021917,3]
[366936166,1750590649131,-460.0,0.00021917,3]
[366936167,1750590649141,-330.54992195,0.00021917,3]
[366936168,1750590649151,-460.0,0.00021917,3]
[366936169,1750590649160,-460.0,0.00021917,3]
[366936170,1750590649170,-436.83275661,0.00021917,3]
[366936171,1750590649179,-460.0,0.00021917,3]
[366936172,1750590649189,-460.0,0.00021917,3]
[366936173,1750590649198,-460.0,0.00021917,3]
[366936174,1750590649207,-460.0,0.00021917,3]
[366936175,1750590649217,-460.0,0.00021917,3]
[366936176,1750590649226,-460.0,0.00021917,3]
[366936177,1750590649236,-460.0,0.00021917,3]
[366936178,1750590649246,-460.0,0.00021917,3]
[366936179,1750590649255,-460.0,0.00021917,3]
[366936180,1750590649265,-460.0,0.00021917,3]
[366936181,1750590649275,-440.34507821,0.00021917,3]
[366936182,1750590649286,-460.0,0.00021917,3]
[366936183,1750590649296,-460.0,0.00021917,3]
[366936184,1750590649307,-460.0,0.00021917,3]
[366936185,1750590649318,-161.63919302,0.00021917,3]
[366936186,1750590649328,-460.0,0.00021917,3]
[366936187,1750590649338,-460.0,0.00021917,3]
[366936188,1750590649347,-460.0,0.00021917,3]
[366936189,1750590649357,-151.0,0.00021917,2]
[366936190,1750590649367,-426.49333193,0.00021917,3]
[366936191,1750590649378,-151.0,0.00021917,2]
[366936192,1750590649387,-296.284332,0.00021917,2]
[366936193,1750590649397,-460.0,0.00021917,3]
[366936194,1750590649407,-460.0,0.00021917,3]
[366936195,1750590649416,-360.0,0.00021917,3]
[366936196,1750590649426,-430.0,0.00021917,3]
[366936197,1750590649436,-460.0,0.00021917,3]
[366936198,1750590649445,-460.0,0.00021917,3]
[366936199,1750590649455,-460.0,0.00021917,3]
[366936200,1750590649465,-460.0,0.00021917,3]
[366936201,1750590649474,-400.0,0.00021917,3]
[366936202,1750590649484,-460.0,0.00021917,3]
[366936203,1750590649494,-460.0,0.00021917,3]
[366936204,1750590649504,-460.0,0.00021917,3]
[366936205,1750590649514,-361.79756212,0.00021917,3]
[366936206,1750590649524,-460.0,0.00021917,3]
[366936207,1750590649534,-460.0,0.00021917,3]
[366936208,1750590649543,-460.0,0.00021917,3]
[366936209,1750590649553,-460.0,0.00021917,3]
[366936210,1750590649562,-460.0,0.00021917,3]
[366936211,1750590649572,-460.0,0.00021917,3]
[366936212,1750590649581,-460.0,0.00021917,3]
[366936213,1750590649591,-460.0,0.00021917,3]
[366936214,1750590649599,-430.84595288,0.00021917,3]
[366936215,1750590649609,-460.0,0.00021917,3]
[366936216,1750590649619,-460.0,0.00021917,3]
[366936217,1750590649628,-440.0,0.00021917,3]
[366936218,1750590649638,-460.0,0.00021917,3]
[366936219,1750590649647,-460.0,0.00021917,3]
[366936220,1750590649657,-460.0,0.00021917,3]
[366936221,1750590649666,-460.0,0.00021917,3]
[366936222,1750590649675,-460.0,0.00021917,3]
[366936223,1750590649685,-460.0,0.00021917,3]
[366936224,1750590649695,-460.0,0.00021917,3]
[366936225,1750590649705,-420.0,0.00021917,3]
[366936226,1750590649715,-460.0,0.00021917,3]
[366936227,1750590649725,-460.0,0.00021917,3]
[366936228,1750590649734,-460.0,0.00021917,3]
[366936229,1750590649744,-460.0,0.00021917,3]
[366936230,1750590649753,-460.0,0.00021917,3]
[366936231,1750590649763,-460.0,0.00021917,3]
[366936232,1750590649772,-376.15670218,0.00021917,3]
[366936233,1750590649781,-460.0,0.00021917,3]
[366936234,1750590649791,-280.0,0.00021917,3]
[366936235,1750590649800,-460.0,0.00021917,3]
[366936236,1750590649810,-460.0,0.00021917,3]
[366936237,1750590649820,-460.0,0.00021917,3]
[366936238,1750590649829,-515.6761328,0.00021917,3]
[366936239,1750590649838,-351.6245047,0.00021917,3]
[366936240,1750590649848,-460.0,0.00021917,3]
[366936241,1750590649857,-460.0,0.00021917,3]
[366936242,1750590649868,-460.0,0.00021917,3]
[366936243,1750590649878,-460.0,0.00021917,3]
[366936244,1750590649888,-460.0,0.00021917,3]
[366936245,1750590649898,-192.2738361,0.00021917,3]
[366936246,1750590649907,-460.0,0.00021917,3]
[366936247,1750590649917,-460.0,0.00021917,3]
[366936248,1750590649927,-460.0,0.00021917,3]
[366936249,1750590649936,-460.0,0.00021917,3]
[366936250,1750590649945,-460.0,0.00021917,3]
[366936251,1750590649955,-460.0,0.00021917,3]
[366936252,1750590649964,-460.0,0.00021917,3]
[366936253,1750590649974,-460.0,0.00021917,3]
[366936254,1750590649983,-400.0,0.00021917,3]
[366936255,1750590649992,-460.0,0.00021917,3]
[366936256,1750590650002,-460.0,0.00021917,3]
[366936257,1750590650011,-524.75063298,0.00021917,3]
[366936258,1750590650021,-460.0,0.00021917,3]
[366936259,1750590650030,-460.0,0.00021917,3]
[366936260,1750590650039,-460.0,0.00021917,3]
[366936261,1750590650049,-460.0,0.00021917,3]
[366936262,1750590650060,-460.0,0.00021917,3]
[366936263,1750590650069,-460.0,0.00021917,3]
[366936264,1750590650078,-460.0,0.00021917,3]
[366936265,1750590650087,-460.0,0.00021917,3]
[366936266,1750590650097,-460.0,0.00021917,3]
[366936267,1750590650106,-191.05408945,0.00021917,3]
[366936268,1750590650116,-460.0,0.00021917,3]
[366936269,1750590650125,-460.0,0.00021917,3]
[366936270,1750590650134,-312.63218256,0.00021917,3]
[366936271,1750590650145,-460.0,0.00021917,3]
[366936272,1750590650154,-462.51542571,0.00021917,3]
[366936273,1750590650163,-460.0,0.00021917,3]
[366936274,1750590650172,-460.0,0.00021917,3]
[366936275,1750590650182,-426.02733148,0.00021917,3]
[366936276,1750590650192,-498.83312429,0.00021917,3]
[366936277,1750590650201,-460.0,0.00021917,3]
[366936278,1750590650211,-460.0,0.00021917,3]
[366936279,1750590650313,-460.0,0.00021917,3]
[366936280,1750590650324,-460.0,0.00021917,3]
[366936281,1750590650333,-460.0,0.00021917,3]
[366936282,1750590650343,-460.0,0.00021917,3]
[366936283,1750590650352,-460.0,0.00021917,3]
[366936284,1750590650362,-460.0,0.00021917,3]
[366936285,1750590650371,-482.07809379,0.00021917,3]
[366936286,1750590650381,-460.0,0.00021917,3]
[366936287,1750590650391,-233.64,0.00021917,3]
[366936288,1750590650401,-288.88860189,0.00021917,3]
[366936289,1750590651075,-155.71071322,0.00021478,2]
[366936290,1750590651214,-4573.41118663,0.00021478,2]
[366936291,1750590651225,-1210.25,0.00021888,10]
[366936292,1750590651235,-141.11139811,0.00021917,3]
[366936293,1750590651245,-556.79940214,0.00021917,3]
[366936294,1750590651254,-460.0,0.00021917,3]
[366936295,1750590651263,-460.0,0.00021917,3]
[366936296,1750590651273,-460.0,0.00021917,3]
[366936297,1750590651283,-460.0,0.00021917,3]
[366936298,1750590651292,-460.0,0.00021917,3]
[366936299,1750590651301,-460.0,0.00021917,3]
[366936300,1750590651311,-322.57550503,0.00021917,3]
[366936301,1750590651321,-460.0,0.00021917,3]
[366936302,1750590651330,-460.0,0.00021917,3]
[366936303,1750590651339,-13.60059464,0.00021917,3]
[366936304,1750590651689,-160.0,0.00020977,2]
[366936305,1750590651699,-1609.6,0.00021907,3]
[366936306,1750590651708,-446.39940536,0.00021917,3]
[366936307,1750590651717,-460.0,0.00021917,3]
[366936308,1750590651727,-339.72042974,0.00021917,3]
[366936309,1750590651736,-460.0,0.00021917,3]
[366936310,1750590651745,-460.0,0.00021917,3]
[366936311,1750590651755,-460.0,0.00021917,3]
[366936312,1750590651765,-460.0,0.00021917,3]
[366936313,1750590651774,-320.0,0.00021917,3]
[366936314,1750590651783,-460.0,0.00021917,3]
[366936315,1750590651792,-294.83182357,0.00021917,3]
[366936316,1750590651801,-460.0,0.00021917,3]
[366936317,1750590651810,-460.0,0.00021917,3]
[366936318,1750590651819,-460.0,0.00021917,3]
[366936319,1750590651829,-460.0,0.00021917,3]
[366936320,1750590651838,-460.0,0.00021917,3]
[366936321,1750590651847,-289.38179493,0.00021917,3]
[366936322,1750590651856,-460.0,0.00021917,3]
[366936323,1750590651865,-460.0,0.00021917,3]
[366936324,1750590651876,-460.0,0.00021917,3]
[366936325,1750590651886,-460.0,0.00021917,3]
[366936326,1750590651896,-460.0,0.00021917,3]
[366936327,1750590651905,-460.0,0.00021917,3]
[366936328,1750590651914,-434.16130122,0.00021917,3]
[366936329,1750590651925,-460.0,0.00021917,3]
[366936330,1750590651934,-351.13608113,0.00021917,3]
[366936331,1750590651944,-460.0,0.00021917,3]
[366936332,1750590651953,-460.0,0.00021917,3]
[366936333,1750590651963,-330.9954464,0.00021917,3]
[366936334,1750590651972,-313.146415,0.00021917,3]
[366936335,1750590651981,-460.0,0.00021917,3]
[366936336,1750590651990,-390.0,0.00021917,3]
[366936337,1750590651999,-460.0,0.00021917,3]
[366936338,1750590652009,-460.0,0.00021917,3]
[366936339,1750590652018,-460.0,0.00021917,3]
[366936340,1750590652128,-460.0,0.00021917,3]
[366936341,1750590652140,-422.39718225,0.00021917,3]
[366936342,1750590652149,-460.0,0.00021917,3]
[366936343,1750590652159,-460.0,0.00021917,3]
[366936344,1750590652167,-460.0,0.00021917,3]
[366936345,1750590652176,-460.0,0.00021917,3]
[366936346,1750590652186,-460.0,0.00021917,3]
[366936347,1750590652196,-460.0,0.00021917,3]
[366936348,1750590652205,-460.0,0.00021917,3]
[366936349,1750590652214,-404.28102986,0.00021917,3]
[366936350,1750590652223,-460.0,0.00021917,3]
[366936351,1750590652232,-460.0,0.00021917,3]
[366936352,1750590652242,-460.0,0.00021917,3]
[366936353,1750590652251,-460.0,0.00021917,3]
[366936354,1750590652260,-460.0,0.00021917,3]
[366936355,1750590652269,-460.0,0.00021917,3]
[366936356,1750590652279,-460.0,0.00021917,3]
[366936357,1750590652289,-460.0,0.00021917,3]
[366936358,1750590652298,-410.0,0.00021917,3]
[366936359,1750590652308,-460.0,0.00021917,3]
[366936360,1750590652318,-402.34417195,0.00021917,3]
[366936361,1750590652327,-460.0,0.00021917,3]
[366936362,1750590652337,-460.0,0.00021917,3]
[366936363,1750590652347,-460.0,0.00021917,3]
[366936364,1750590652357,-400.0,0.00021917,3]
[366936365,1750590652366,-23.24300921,0.00021917,3]
[366936366,1750590652572,-155.71071322,0.00021917,3]
[366936367,1750590654470,-160.0,0.00021888,10]
[366936368,1750590656218,-187.90630452,0.00021888,10]
[366936369,1750590661441,-200.0,0.00021888,10]
[366936370,1750590664024,-171.0559228,0.00021888,10]
[366936371,1750590666833,-166.3,0.00021888,10]
[366936372,1750590670956,487.578168,0.000225,30]
[366936373,1750590671443,649.30312667,0.0001625,30]
[366936375,1750590671807,-202.92814066,0.00021669,4]
[366936376,1750590683559,6516.54276098,0.000222,69]
[366936377,1750590688551,6516.54276097,0.00022474,70]
[366936378,1750590689072,-161.40479298,0.00021669,2]
[366936379,1750590689095,-41.52334768,0.00021669,4]
[366936380,1750590696466,-150.0,0.00021669,4]
[366936381,1750590711859,-150.0,0.00021669,4]
[366936382,1750590726079,-150.0,0.00021281,2]
[366936383,1750590744646,-160.0,0.00020629,2]
[366936384,1750590751727,-150.0,0.00020423,2]
[366936385,1750590758833,-10.0,0.00020423,2]
[366936386,1750590758855,-296.03497469,0.00020529,2]
[366936387,1750590773067,4600.0,0.00025,120]
[366936388,1750590783798,-160.0,0.00020529,2]
[366936389,1750590789999,3347.08692349,0.00025,120]
[366936390,1750590801577,-164.90024098,0.0002018,2]
[366936391,1750590813477,-1.46410152,0.0002018,2]
[366936392,1750590813500,-186.25199678,0.0002018,2]
[366936393,1750590816380,-187.7160983,0.0002018,2]
[366936395,1750590828566,-164.79406157,0.00020618,10]
[366936396,1750590834202,-175.15509954,0.0002018,2]
[366936397,1750590846015,5000.0,0.000201,2]
[366936398,1750590847679,2394.0049636,0.00019714,2]
[366936400,1750590854831,158.05718848,0.0002008,2]
[366936401,1750590862179,850.06848722,0.000201,2]
[366936402,1750590862203,718.79269605,0.000201,2]
[366936403,1750590898897,171.47002669,0.00019573,2]
[366936404,1750590903123,1290.68018253,0.00020071,2]
[366936405,1750590903196,929.65220613,0.0002,2]
[366936406,1750590904156,161.629511,0.00019556,2]
[366936407,1750590904365,161.629511,0.00019556,13]
[366936408,1750590904522,150.0,0.00025,120]
[366936409,1750590904562,161.629511,0.00019556,25]
[366936410,1750590904981,161.629511,0.00019556,37]
[366936411,1750590905176,161.629511,0.00019556,49]
[366936412,1750590905362,161.629511,0.00019556,61]
[366936413,1750590905574,161.629511,0.00019556,72]
[366936414,1750590905768,161.629511,0.00019556,84]
[366936415,1750590906163,161.629511,0.00019556,96]
[366936416,1750590906727,161.629511,0.00019556,108]
[366936417,1750590906776,161.629511,0.00019556,120]
[366936418,1750590952241,215.66372627,0.00020078,2]
[366936419,1750590952567,215.66372626,0.00020078,2]
[366936420,1750590952923,215.66372626,0.00020079,2]
[366936421,1750590953270,215.66372626,0.00020079,2]
[366936422,1750590953595,215.66372626,0.00020079,2]
[366936423,1750590978710,223.6189893,0.00022191,30]
[366936424,1750590986226,160.0,0.000201,2]
[366936425,1750591049023,6250.7764824,0.00019199,2]
[366936426,1750591092841,407.03997569,0.00019966,2]
[366936427,1750591143719,3909.92565659,0.000222,69]
[366936428,1750591148737,3909.92565658,0.000222,69]
[366936429,1750591153746,3909.92565658,0.00022388,70]
[366936430,1750591190979,260.0,0.00024931,120]
[366936431,1750591265270,13508.3812662,0.000201,2]
[366936432,1750591265292,25000.0,0.000201,2]
[366936433,1750591265316,25000.0,0.000201,2]
[366936434,1750591265340,25000.0,0.000201,2]
[366936435,1750591265364,25000.0,0.000201,2]
[366936436,1750591265388,20116.00879682,0.000201,2]
[366936437,1750591312059,1856.0513411,0.00019329,2]
[366936438,1750591331945,666.0,0.00019176,2]
[366936439,1750591336842,206.27196193,0.00020076,2]
[366936463,1750591472156,721.6656812,0.00019169,2]
[366936465,1750591505548,158.122616,0.00013699,2]
[366936466,1750591534177,-156.587,0.00020164,2]
[366936467,1750591534206,-364.44481857,0.00020165,3]
[366936468,1750591537808,182.01128,0.00019178,2]
[366936469,1750591539092,-52.11518143,0.00020165,3]
[366936470,1750591539113,-208.28,0.00020165,3]
[366936471,1750591539133,-624.84,0.00020165,3]
[366936472,1750591539153,-182.62333246,0.00020165,2]
[366936474,1750591636110,-300.0,0.00020164,2]
[366936475,1750591636131,-300.0,0.00020164,2]
[366936476,1750591636153,-300.0,0.00020165,2]
[366936477,1750591636172,-300.0,0.00020165,2]
[366936478,1750591636193,-1200.0,0.00020165,2]
[366936479,1750591636216,-500.0,0.00020165,2]
[366936480,1750591636236,-500.0,0.00020165,2]
[366936481,1750591636257,-500.0,0.00020165,2]
[366936482,1750591636277,-500.0,0.00020165,2]
[366936483,1750591636299,-500.0,0.00020165,2]
[366936484,1750591636320,-500.0,0.00020165,2]
[366936485,1750591636339,-47.17454589,0.00020165,2]
[366936486,1750591636371,-578.69184523,0.00020165,2]
[366936487,1750591639140,500.0,0.0002,2]
[366936488,1750591646226,-9.51511444,0.00020165,2]
[366936489,1750591646248,-500.0,0.00020165,2]
[366936490,1750591646272,-13.35143641,0.00020165,2]
[366936491,1750591649091,-486.64856359,0.00020165,2]
[366936492,1750591649113,-500.0,0.00020165,2]
[366936493,1750591649345,-500.0,0.00020165,2]
[366936494,1750591649368,-358.14378993,0.00020165,2]
[366936495,1750591663809,536.0,0.0002,2]
[366936496,1750591711560,57.86832295,0.00019169,2]
[366936497,1750591711583,248.16665175,0.00019169,2]
[366936498,1750591717000,2264.09478837,0.0002,20]
[366936499,1750591717345,301.02388786,0.0002,7]
[366936500,1750591717505,22186.71467202,0.0002,2]
[366936501,1750591717528,5436.23911114,0.0002,2]
[366936502,1750591718437,2687.89537855,0.0002,2]
[366936503,1750591719999,790.2859423,0.00020065,2]
[366936506,1750591720751,151.0,0.0002,120]
[366936507,1750591723386,187.36787037,0.00019,20]
[366936508,1750591723520,1141.99448837,0.0002,2]
[366936509,1750591723808,355.10812744,0.000195,5]
[366936512,1750591725360,413.2297769,0.0002,2]
[366936513,1750591726608,291.81934952,0.000189,2]
[366936514,1750591747173,-300.0,0.00020163,2]
[366936515,1750591747194,-500.0,0.00020164,2]
[366936516,1750591747216,-500.0,0.00020164,2]
[366936517,1750591747241,-500.0,0.00020164,2]
[366936518,1750591747263,-500.0,0.00020164,2]
[366936519,1750591747285,-500.0,0.00020164,2]
[366936520,1750591747308,-500.0,0.00020164,2]
[366936521,1750591747329,-500.0,0.00020164,2]
[366936522,1750591747351,-621.35650188,0.00020164,2]
[366936523,1750591747374,-500.0,0.00020164,2]
[366936524,1750591747397,-500.0,0.00020164,2]
[366936525,1750591747418,-500.0,0.00020164,2]
[366936526,1750591747448,-500.0,0.00020164,2]
[366936527,1750591747477,-500.0,0.00020164,2]
[366936528,1750591747501,-500.0,0.00020164,2]
[366936529,1750591747524,-500.0,0.00020164,2]
[366936530,1750591747546,-500.0,0.00020164,2]
[366936531,1750591747569,-500.0,0.00020164,2]
[366936532,1750591747591,-231.98772256,0.00020164,2]
[366936533,1750591747614,-500.0,0.00020164,2]
[366936534,1750591747636,-500.0,0.00020164,2]
[366936535,1750591747660,-500.0,0.00020164,2]
[366936536,1750591747683,-500.0,0.00020164,2]
[366936537,1750591747705,-500.0,0.00020164,2]
[366936538,1750591747729,-500.0,0.00020164,2]
[366936539,1750591747753,-500.0,0.00020164,2]
[366936540,1750591747774,-427.02096653,0.00020164,2]
[366936541,1750591747798,-500.0,0.00020164,2]
[366936542,1750591747820,-500.0,0.00020164,2]
[366936543,1750591747844,-500.0,0.00020164,2]
[366936544,1750591747866,-500.0,0.00020164,2]
[366936545,1750591747888,-500.0,0.00020164,2]
[366936546,1750591747911,-500.0,0.00020164,2]
[366936547,1750591747933,-500.0,0.00020164,2]
[366936548,1750591747956,-500.0,0.00020164,2]
[366936549,1750591747979,-500.0,0.00020164,2]
[366936550,1750591748000,-368.71484605,0.00020164,2]
[366936551,1750591748023,-500.0,0.00020164,2]
[366936552,1750591748044,-300.0,0.00020164,2]
[366936553,1750591748066,-500.0,0.00020164,2]
[366936554,1750591748089,-500.0,0.00020164,2]
[366936555,1750591748111,-500.0,0.00020164,2]
[366936556,1750591748135,-500.0,0.00020164,2]
[366936557,1750591748159,-500.0,0.00020164,2]
[366936558,1750591748185,-177.67058906,0.00020164,2]
[366936559,1750591748206,-361.64909145,0.00020164,2]
[366936560,1750591748229,-500.0,0.00020164,2]
[366936561,1750591748256,-500.0,0.00020164,2]
[366936562,1750591748278,-500.0,0.00020164,2]
[366936563,1750591748305,-500.0,0.00020164,2]
[366936564,1750591748329,-500.0,0.00020164,2]
[366936565,1750591748350,-500.0,0.00020164,2]
[366936566,1750591748372,-500.0,0.00020164,2]
[366936567,1750591748395,-288.05922942,0.00020164,2]
[366936568,1750591748416,-500.0,0.00020164,2]
[366936569,1750591748438,-500.0,0.00020164,2]
[366936570,1750591748460,-500.0,0.00020164,2]
[366936571,1750591748482,-500.0,0.00020164,2]
[366936572,1750591748503,-500.0,0.00020164,2]
[366936573,1750591748528,-500.0,0.00020164,2]
[366936574,1750591748552,-500.0,0.00020164,2]
[366936575,1750591748574,-500.0,0.00020164,2]
[366936576,1750591748754,-500.0,0.00020164,2]
[366936577,1750591748777,-500.0,0.00020164,2]
[366936578,1750591748800,-500.0,0.00020164,2]
[366936579,1750591748820,-500.0,0.00020164,2]
[366936580,1750591748841,-500.0,0.00020164,2]
[366936581,1750591748862,-357.54257058,0.00020164,2]
[366936582,1750591748884,-500.0,0.00020164,2]
[366936583,1750591748906,-500.0,0.00020164,2]
[366936584,1750591748929,-500.0,0.00020164,2]
[366936585,1750591748952,-500.0,0.00020164,2]
[366936586,1750591748973,-500.0,0.00020164,2]
[366936587,1750591748993,-500.0,0.00020164,2]
[366936588,1750591749017,-500.0,0.00020164,2]
[366936589,1750591749038,-500.0,0.00020164,2]
[366936590,1750591749060,-500.0,0.00020164,2]
[366936591,1750591749082,-500.0,0.00020164,2]
[366936592,1750591749104,-500.0,0.00020164,2]
[366936593,1750591749126,-500.0,0.00020164,2]
[366936594,1750591749147,-500.0,0.00020164,2]
[366936595,1750591749168,-500.0,0.00020164,2]
[366936596,1750591749189,-500.0,0.00020164,2]
[366936597,1750591749210,-447.02310933,0.00020164,2]
[366936598,1750591749233,-500.0,0.00020164,2]
[366936599,1750591749255,-500.0,0.00020164,2]
[366936600,1750591749276,-500.0,0.00020164,2]
[366936601,1750591749297,-500.0,0.00020164,2]
[366936602,1750591749320,-500.0,0.00020164,2]
[366936603,1750591749343,-500.0,0.00020164,2]
[366936604,1750591749364,-500.0,0.00020164,2]
[366936605,1750591749386,-500.0,0.00020164,2]
[366936606,1750591749414,-500.0,0.00020164,2]
[366936607,1750591749438,-500.0,0.00020164,2]
[366936608,1750591749460,-500.0,0.00020164,2]
[366936609,1750591749484,-500.0,0.00020164,2]
[366936610,1750591749505,-500.0,0.00020164,2]
[366936611,1750591749528,-500.0,0.00020164,2]
[366936612,1750591749551,-500.0,0.00020164,2]
[366936613,1750591749574,-500.0,0.00020164,2]
[366936614,1750591749595,-500.0,0.00020164,2]
[366936615,1750591749617,-500.0,0.00020164,2]
[366936616,1750591749639,-500.0,0.00020164,2]
[366936617,1750591749661,-500.0,0.00020164,2]
[366936618,1750591749682,-500.0,0.00020164,2]
[366936619,1750591749703,-500.0,0.00020164,2]
[366936620,1750591749723,-500.0,0.00020164,2]
[366936621,1750591749759,-500.0,0.00020164,2]
[366936622,1750591749784,-500.0,0.00020164,2]
[366936623,1750591749809,-500.0,0.00020164,2]
[366936624,1750591749834,-500.0,0.00020164,2]
[366936625,1750591749860,-500.0,0.00020164,2]
[366936626,1750591749883,-500.0,0.00020164,2]
[366936627,1750591749909,-288.30137441,0.00020164,2]
[366936628,1750591749933,-500.0,0.00020164,2]
[366936629,1750591749956,-500.0,0.00020164,2]
[366936630,1750591749979,-500.0,0.00020164,2]
[366936631,1750591750004,-500.0,0.00020164,2]
[366936632,1750591750031,-500.0,0.00020164,2]
[366936633,1750591750056,-500.0,0.00020164,2]
[366936634,1750591750081,-500.0,0.00020164,2]
[366936635,1750591750106,-500.0,0.00020164,2]
[366936636,1750591750129,-500.0,0.00020164,2]
[366936637,1750591750153,-500.0,0.00020164,2]
[366936638,1750591750175,-500.0,0.00020164,2]
[366936639,1750591750197,-500.0,0.00020164,2]
[366936640,1750591750219,-500.0,0.00020164,2]
[366936641,1750591750246,-500.0,0.00020164,2]
[366936642,1750591750271,-500.0,0.00020164,2]
[366936643,1750591750295,-500.0,0.00020164,2]
[366936644,1750591750320,-500.0,0.00020164,2]
[366936645,1750591750344,-500.0,0.00020164,2]
[366936646,1750591750368,-500.0,0.00020164,2]
[366936647,1750591750392,-500.0,0.00020164,2]
[366936648,1750591750417,-500.0,0.00020164,2]
[366936649,1750591750442,-500.0,0.00020164,2]
[366936650,1750591750464,-236.52952941,0.00020164,2]
[366936651,1750591750487,-500.0,0.00020164,2]
[366936652,1750591750510,-500.0,0.00020164,2]
[366936653,1750591750533,-505.09021109,0.00020164,2]
[366936654,1750591750555,-505.09021109,0.00020164,2]
[366936655,1750591750577,-505.09021109,0.00020164,2]
[366936656,1750591750600,-505.09021109,0.00020164,2]
[366936657,1750591750623,-505.09021109,0.00020164,2]
[366936658,1750591750645,-500.0,0.00020164,2]
[366936659,1750591750667,-505.09021109,0.00020164,2]
[366936660,1750591750690,-500.0,0.00020164,2]
[366936661,1750591750712,-505.09021109,0.00020164,2]
[366936662,1750591750734,-500.0,0.00020164,2]
[366936663,1750591750759,-505.09021109,0.00020164,2]
[366936664,1750591750780,-500.0,0.00020164,2]
[366936665,1750591750803,-505.09021109,0.00020164,2]
[366936666,1750591750826,-500.0,0.00020164,2]
[366936667,1750591750849,-449.11578391,0.00020164,2]
[366936668,1750591750871,-505.09021109,0.00020164,2]
[366936669,1750591750892,-500.0,0.00020164,2]
[366936670,1750591750914,-505.09021109,0.00020164,2]
[366936671,1750591750937,-515.21042917,0.00020164,2]
[366936672,1750591750958,-505.09021109,0.00020164,2]
[366936673,1750591750981,-515.21042917,0.00020164,2]
[366936674,1750591751149,-500.0,0.00020164,2]
[366936675,1750591751171,-515.21042917,0.00020164,2]
[366936676,1750591751193,-505.09021109,0.00020164,2]
[366936677,1750591751216,-515.21042917,0.00020164,2]
[366936678,1750591751239,-505.09021109,0.00020164,2]
[366936679,1750591751260,-515.21042917,0.00020164,2]
[366936680,1750591751283,-505.09021109,0.00020164,2]
[366936681,1750591751303,-515.21042917,0.00020164,2]
[366936682,1750591751327,-505.09021109,0.00020164,2]
[366936683,1750591751348,-515.21042917,0.00020164,2]
[366936684,1750591751369,-515.21042917,0.00020164,2]
[366936685,1750591751391,-505.09021109,0.00020164,2]
[366936686,1750591751412,-515.21042917,0.00020164,2]
[366936687,1750591751435,-505.09021109,0.00020164,2]
[366936688,1750591751456,-515.21042917,0.00020164,2]
[366936689,1750591751478,-515.21042917,0.00020164,2]
[366936690,1750591751500,-505.09021109,0.00020164,2]